[Event "Schack-SM 2024: Junior-SM"]
[Site "Fortnox Arena, Hejaregatan 5, Vaxjo, Sweden"]
[Date "2024.07.06"]
[Round "8.4"]
[White "Nilsson, Oliver"]
[Black "Valcu, Lavinia"]
[Result "1-0"]
[TimeControl "90 minutes for 40 moves + 30 minutes for the rest of the game + 30 seconds per move from move one."]
[WhiteElo "2099"]
[BlackElo "1971"]

1. e4 {[%clk 01:30:47]} {[%emt 00:00:12]} c6 {[%clk 01:30:51]} {[%emt
00:00:10]} 2. d4 {[%clk 01:30:31]} {[%emt 00:00:46]} d5 {[%clk 01:31:06]}
{[%emt 00:00:15]} 3. e5 {[%clk 01:30:57]} {[%emt 00:00:03]} Bf5 {[%clk
01:31:29]} {[%emt 00:00:08]} 4. h4 {[%clk 01:31:23]} {[%emt 00:00:03]} h6
{[%clk 01:31:40]} {[%emt 00:00:20]} 5. g4 {[%clk 01:31:35]} {[%emt 00:00:18]}
Be4 {[%clk 01:32:03]} {[%emt 00:00:06]} 6. f3 {[%clk 01:31:59]} {[%emt
00:00:07]} Bh7 {[%clk 01:32:29]} {[%emt 00:00:03]} 7. e6 {[%clk 01:32:22]}
{[%emt 00:00:07]} Nf6 {[%clk 01:32:52]} {[%emt 00:00:06]} 8. exf7+ {[%clk
01:31:35]} {[%emt 00:01:18]} Kxf7 {[%clk 01:33:13]} {[%emt 00:00:10]} 9. f4
{[%clk 01:30:51]} {[%emt 00:01:14]} e6 {[%clk 01:20:32]} {[%emt 00:13:11]} 10.
Nf3 {[%clk 01:30:12]} {[%emt 00:01:08]} Nbd7 {[%clk 01:07:05]} {[%emt
00:13:57]} 11. Bd3 {[%clk 01:21:07]} {[%emt 00:09:34]} Ne4 {[%clk 00:58:53]}
{[%emt 00:08:43]} 12. Nbd2 {[%clk 01:19:46]} {[%emt 00:01:52]} Be7 {[%clk
00:54:18]} {[%emt 00:05:04]} 13. Rh3 {[%clk 01:15:36]} {[%emt 00:04:40]} c5
{[%clk 00:39:48]} {[%emt 00:15:01]} 14. Qe2 {[%clk 01:12:35]} {[%emt 00:03:31]}
Nxd2 {[%clk 00:37:49]} {[%emt 00:02:29]} 15. Bxd2 {[%clk 01:11:50]} {[%emt
00:01:14]} Bxd3 {[%clk 00:36:50]} {[%emt 00:01:29]} 16. Qxd3 {[%clk 01:06:53]}
{[%emt 00:05:28]} c4 {[%clk 00:36:24]} {[%emt 00:00:56]} 17. Qe2 {[%clk
01:04:39]} {[%emt 00:02:43]} Rc8 {[%clk 00:35:30]} {[%emt 00:01:25]} 18. c3
{[%clk 01:01:00]} {[%emt 00:04:09]} Rc6 {[%clk 00:33:12]} {[%emt 00:02:47]} 19.
Kf2 {[%clk 01:00:34]} {[%emt 00:00:56]} Rf8 {[%clk 00:28:13]} {[%emt 00:05:29]}
20. Kg2 {[%clk 01:00:13]} {[%emt 00:00:51]} Kg8 {[%clk 00:26:23]} {[%emt
00:02:21]} 21. Rah1 {[%clk 00:59:16]} {[%emt 00:01:26]} Rb6 {[%clk 00:20:39]}
{[%emt 00:06:14]} 22. Bc1 {[%clk 00:58:55]} {[%emt 00:00:52]} Nf6 {[%clk
00:19:24]} {[%emt 00:01:44]} 23. Ne5 {[%clk 00:46:51]} {[%emt 00:12:34]} Ne4
{[%clk 00:18:15]} {[%emt 00:01:38]} 24. g5 {[%clk 00:41:37]} {[%emt 00:05:45]}
Qe8 {[%clk 00:17:42]} {[%emt 00:01:04]} 25. gxh6 {[%clk 00:40:49]} {[%emt
00:01:18]} gxh6 {[%clk 00:16:45]} {[%emt 00:01:27]} 26. Kh2 {[%clk 00:38:42]}
{[%emt 00:02:36]} Kh7 {[%clk 00:14:06]} {[%emt 00:03:09]} 27. h5 {[%clk
00:31:29]} {[%emt 00:07:43]} Bd6 {[%clk 00:12:22]} {[%emt 00:02:14]} 28. Rg1
{[%clk 00:30:19]} {[%emt 00:01:40]} Bxe5 {[%clk 00:11:54]} {[%emt 00:00:59]} 29.
dxe5 {[%clk 00:29:59]} {[%emt 00:00:50]} Rc6 {[%clk 00:11:06]} {[%emt
00:01:18]} 30. Rg6 {[%clk 00:29:41]} {[%emt 00:00:48]} Rf5 {[%clk 00:10:25]}
{[%emt 00:01:10]} 31. Qg4 {[%clk 00:27:48]} {[%emt 00:02:23]} Rc7 {[%clk
00:09:27]} {[%emt 00:01:28]} 32. Be3 {[%clk 00:28:02]} {[%emt 00:00:15]} b6
{[%clk 00:08:44]} {[%emt 00:01:14]} 33. Kh1 {[%clk 00:27:19]} {[%emt 00:01:13]}
Qf7 {[%clk 00:05:25]} {[%emt 00:03:49]} 34. Rh2 {[%clk 00:27:01]} {[%emt
00:00:48]} Re7 {[%clk 00:04:02]} {[%emt 00:01:53]} 35. Rg2 {[%clk 00:27:20]}
{[%emt 00:00:11]} Rd7 {[%clk 00:03:58]} {[%emt 00:00:34]} 36. Kg1 {[%clk
00:25:21]} {[%emt 00:02:30]} Re7 {[%clk 00:03:51]} {[%emt 00:00:37]} 37. Qh3
{[%clk 00:21:41]} {[%emt 00:04:10]} Rd7 {[%clk 00:03:32]} {[%emt 00:00:48]} 38.
R2g4 {[%clk 00:22:03]} {[%emt 00:00:08]} Re7 {[%clk 00:03:25]} {[%emt
00:00:37]} 39. Qg2 {[%clk 00:18:33]} {[%emt 00:04:01]} Rxh5 {[%clk 00:02:43]}
{[%emt 00:01:12]} 40. f5 {[%clk 00:18:52]} {[%emt 00:00:11]} exf5 {[%clk
00:01:08]} {[%emt 00:02:04]} 41. e6 {[%clk 00:17:05]} {[%emt 00:02:17]} Qf8
{[%clk 00:22:22]} {[%emt 00:09:16]} 42. Rg8 {[%clk 00:44:36]} {[%emt 00:02:59]}
Qf6 {[%clk 00:19:52]} {[%emt 00:02:59]} 43. R4g6 {[%clk 00:44:38]} {[%emt
00:00:29]} Ng5 {[%clk 00:16:31]} {[%emt 00:03:51]} 44. Rxf6 {[%clk 00:44:01]}
{[%emt 00:01:07]} Kxg8 {[%clk 00:16:49]} {[%emt 00:00:12]} 45. Qxd5 {[%clk
00:43:25]} {[%emt 00:01:06]} Kg7 {[%clk 00:15:28]} {[%emt 00:01:52]} 46. Bd4
{[%clk 00:43:28]} {[%emt 00:00:26]} 1-0

[Event "Schack-SM 2024: Junior-SM"]
[Site "Fortnox Arena, Hejaregatan 5, Vaxjo, Sweden"]
[Date "2024.07.06"]
[Round "8.5"]
[White "Falkevall, Axel"]
[Black "Frank, Anton 2006"]
[Result "1-0"]
[TimeControl "90 minutes for 40 moves + 30 minutes for the rest of the game + 30 seconds per move from move one."]
[WhiteTitle "FM"]
[WhiteElo "2318"]
[BlackElo "2131"]

1. d4 {[%clk 01:30:57]} {[%emt 00:00:03]} d5 {[%clk 01:30:04]} {[%emt
00:00:56]} 2. c4 {[%clk 01:31:15]} {[%emt 00:00:12]} e6 {[%clk 01:30:27]}
{[%emt 00:00:08]} 3. Nf3 {[%clk 01:31:40]} {[%emt 00:00:05]} Nf6 {[%clk
01:30:53]} {[%emt 00:00:04]} 4. Nc3 {[%clk 01:32:05]} {[%emt 00:00:04]} Nbd7
{[%clk 01:31:18]} {[%emt 00:00:06]} 5. cxd5 {[%clk 01:32:18]} {[%emt 00:00:17]}
exd5 {[%clk 01:31:34]} {[%emt 00:00:14]} 6. Bf4 {[%clk 01:32:43]} {[%emt
00:00:04]} Bb4 {[%clk 01:31:24]} {[%emt 00:00:40]} 7. e3 {[%clk 01:32:02]}
{[%emt 00:01:11]} Ne4 {[%clk 01:31:05]} {[%emt 00:00:49]} 8. Qc2 {[%clk
01:30:23]} {[%emt 00:02:09]} g5 {[%clk 01:31:12]} {[%emt 00:00:23]} 9. Be5
{[%clk 01:29:09]} {[%emt 00:01:44]} Nxe5 {[%clk 01:31:29]} {[%emt 00:00:13]} 10.
Nxe5 {[%clk 01:29:28]} {[%emt 00:00:12]} c6 {[%clk 01:31:51]} {[%emt 00:00:07]}
11. Bd3 {[%clk 01:27:50]} {[%emt 00:02:08]} f6 {[%clk 01:32:08]} {[%emt
00:00:13]} 12. Nf3 {[%clk 01:27:30]} {[%emt 00:00:49]} Qe7 {[%clk 01:31:51]}
{[%emt 00:00:47]} 13. a3 {[%clk 01:24:49]} {[%emt 00:03:12]} Bxc3+ {[%clk
01:31:41]} {[%emt 00:00:40]} 14. bxc3 {[%clk 01:25:13]} {[%emt 00:00:06]} Nd6
{[%clk 01:32:02]} {[%emt 00:00:09]} 15. O-O {[%clk 01:24:07]} {[%emt 00:01:35]}
Be6 {[%clk 01:30:51]} {[%emt 00:01:41]} 16. Nd2 {[%clk 01:20:49]} {[%emt
00:03:48]} O-O-O {[%clk 01:31:11]} {[%emt 00:00:10]} 17. Rfb1 {[%clk 01:20:04]}
{[%emt 00:01:16]} Kb8 {[%clk 01:23:56]} {[%emt 00:07:44]} 18. a4 {[%clk
01:18:31]} {[%emt 00:02:04]} h5 {[%clk 01:23:17]} {[%emt 00:01:09]} 19. a5
{[%clk 01:18:40]} {[%emt 00:00:21]} h4 {[%clk 01:16:57]} {[%emt 00:06:49]} 20.
Nb3 {[%clk 01:16:50]} {[%emt 00:02:21]} h3 {[%clk 01:14:45]} {[%emt 00:02:42]}
21. g3 {[%clk 01:16:53]} {[%emt 00:00:27]} Bg8 {[%clk 01:15:02]} {[%emt
00:00:12]} 22. Nc5 {[%clk 01:16:04]} {[%emt 00:01:19]} Ka8 {[%clk 01:08:11]}
{[%emt 00:07:21]} 23. Rb6 {[%clk 01:09:08]} {[%emt 00:07:27]} Bh7 {[%clk
00:41:36]} {[%emt 00:27:05]} 24. Bxh7 {[%clk 01:02:20]} {[%emt 00:07:18]} Qxh7
{[%clk 00:34:37]} {[%emt 00:07:29]} 25. a6 {[%clk 00:48:21]} {[%emt 00:14:29]}
axb6 {[%clk 00:28:08]} {[%emt 00:06:58]} 26. axb7+ {[%clk 00:48:27]} {[%emt
00:00:25]} Kb8 {[%clk 00:28:31]} {[%emt 00:00:06]} 27. Ra8+ {[%clk 00:47:45]}
{[%emt 00:01:13]} Kc7 {[%clk 00:28:52]} {[%emt 00:00:09]} 28. Qxh7+ {[%clk
00:47:27]} {[%emt 00:00:48]} Rxh7 {[%clk 00:29:12]} {[%emt 00:00:10]} 29. Rxd8
{[%clk 00:47:29]} {[%emt 00:00:28]} Kxd8 {[%clk 00:26:26]} {[%emt 00:03:15]} 30.
b8=Q+ {[%clk 00:47:47]} {[%emt 00:00:12]} Nc8 {[%clk 00:26:50]} {[%emt
00:00:07]} 31. Ne6+ {[%clk 00:47:54]} {[%emt 00:00:23]} Ke7 {[%clk 00:25:37]}
{[%emt 00:01:42]} 32. Qc7+ {[%clk 00:48:08]} {[%emt 00:00:16]} Kxe6 {[%clk
00:26:02]} {[%emt 00:00:05]} 33. Qxh7 {[%clk 00:48:26]} {[%emt 00:00:12]} g4
{[%clk 00:26:03]} {[%emt 00:00:30]} 34. Qg8+ {[%clk 00:48:44]} {[%emt
00:00:11]} Kd7 {[%clk 00:26:21]} {[%emt 00:00:13]} 35. Qxg4+ {[%clk 00:49:09]}
{[%emt 00:00:04]} 1-0

[Event "Schack-SM 2024: Junior-SM"]
[Site "Fortnox Arena, Hejaregatan 5, Vaxjo, Sweden"]
[Date "2024.07.06"]
[Round "8.1"]
[White "Soderstrom, Adrian"]
[Black "Strom-Engdahl, Alexander"]
[Result "1/2-1/2"]
[TimeControl "90 minutes for 40 moves + 30 minutes for the rest of the game + 30 seconds per move from move one."]
[WhiteTitle "FM"]
[WhiteElo "2351"]
[BlackElo "2191"]

1. e4 {[%clk 01:26:46]} {[%emt 00:04:03]} c5 {[%clk 01:30:21]} {[%emt
00:00:48]} 2. Nf3 {[%clk 01:27:09]} {[%emt 00:00:07]} Nc6 {[%clk 01:30:47]}
{[%emt 00:00:05]} 3. d4 {[%clk 01:27:09]} {[%emt 00:00:30]} cxd4 {[%clk
01:31:08]} {[%emt 00:00:09]} 4. Nxd4 {[%clk 01:27:02]} {[%emt 00:00:37]} e5
{[%clk 01:31:32]} {[%emt 00:00:06]} 5. Nb5 {[%clk 01:27:28]} {[%emt 00:00:04]}
d6 {[%clk 01:31:57]} {[%emt 00:00:05]} 6. N1c3 {[%clk 01:27:43]} {[%emt
00:00:14]} a6 {[%clk 01:32:15]} {[%emt 00:00:12]} 7. Na3 {[%clk 01:28:10]}
{[%emt 00:00:04]} Be7 {[%clk 01:32:38]} {[%emt 00:00:08]} 8. Nc4 {[%clk
01:19:48]} {[%emt 00:08:51]} b5 {[%clk 01:32:53]} {[%emt 00:00:15]} 9. Ne3
{[%clk 01:20:00]} {[%emt 00:00:18]} Nf6 {[%clk 01:33:18]} {[%emt 00:00:06]} 10.
Bd3 {[%clk 01:19:29]} {[%emt 00:01:00]} O-O {[%clk 01:33:34]} {[%emt 00:00:14]}
11. a4 {[%clk 01:14:25]} {[%emt 00:05:34]} b4 {[%clk 01:24:56]} {[%emt
00:09:08]} 12. Ncd5 {[%clk 01:14:47]} {[%emt 00:00:08]} Nxd5 {[%clk 01:24:22]}
{[%emt 00:01:05]} 13. Nxd5 {[%clk 01:12:35]} {[%emt 00:02:41]} Bg5 {[%clk
01:24:01]} {[%emt 00:00:51]} 14. O-O {[%clk 01:10:21]} {[%emt 00:02:44]} Bxc1
{[%clk 01:24:21]} {[%emt 00:00:10]} 15. Qxc1 {[%clk 01:09:06]} {[%emt
00:01:45]} Be6 {[%clk 01:23:58]} {[%emt 00:00:53]} 16. Qe3 {[%clk 00:56:23]}
{[%emt 00:13:13]} a5 {[%clk 01:11:15]} {[%emt 00:13:14]} 17. c3 {[%clk
00:51:07]} {[%emt 00:05:45]} Rb8 {[%clk 01:07:30]} {[%emt 00:04:16]} 18. Rad1
{[%clk 00:46:36]} {[%emt 00:05:00]} Kh8 {[%clk 00:55:27]} {[%emt 00:12:33]} 19.
Bb5 {[%clk 00:46:09]} {[%emt 00:00:57]} Bxd5 {[%clk 00:50:35]} {[%emt
00:05:21]} 20. Rxd5 {[%clk 00:40:56]} {[%emt 00:05:42]} Ne7 {[%clk 00:46:12]}
{[%emt 00:04:54]} 21. Rd2 {[%clk 00:40:49]} {[%emt 00:00:37]} bxc3 {[%clk
00:39:28]} {[%emt 00:07:14]} 22. Qxc3 {[%clk 00:40:40]} {[%emt 00:00:38]} Qb6
{[%clk 00:39:01]} {[%emt 00:00:57]} 23. Rfd1 {[%clk 00:39:08]} {[%emt
00:02:03]} Rbd8 {[%clk 00:38:49]} {[%emt 00:00:43]} 24. Qa3 {[%clk 00:37:03]}
{[%emt 00:02:34]} Nc8 {[%clk 00:38:50]} {[%emt 00:00:30]} 25. b4 {[%clk
00:31:47]} {[%emt 00:05:45]} f5 {[%clk 00:36:20]} {[%emt 00:03:00]} 26. bxa5
{[%clk 00:30:11]} {[%emt 00:02:06]} Qxa5 {[%clk 00:36:27]} {[%emt 00:00:23]} 27.
Qe3 {[%clk 00:25:46]} {[%emt 00:04:54]} Na7 {[%clk 00:31:18]} {[%emt 00:05:40]}
28. Rd5 {[%clk 00:24:25]} {[%emt 00:01:50]} fxe4 {[%clk 00:29:38]} {[%emt
00:02:10]} 29. Qxe4 {[%clk 00:23:26]} {[%emt 00:01:28]} Qb6 {[%clk 00:28:17]}
{[%emt 00:01:51]} 30. Qe3 {[%clk 00:20:45]} {[%emt 00:03:11]} Qxe3 {[%clk
00:27:12]} {[%emt 00:01:37]} 31. fxe3 {[%clk 00:21:12]} {[%emt 00:00:03]} Nxb5
{[%clk 00:27:18]} {[%emt 00:00:24]} 32. Rxb5 {[%clk 00:20:34]} {[%emt
00:01:08]} Ra8 {[%clk 00:25:51]} {[%emt 00:01:58]} 33. a5 {[%clk 00:20:38]}
{[%emt 00:00:26]} Ra6 {[%clk 00:25:54]} {[%emt 00:00:27]} 34. Rdd5 {[%clk
00:20:33]} {[%emt 00:00:35]} Kg8 {[%clk 00:23:39]} {[%emt 00:02:45]} 35. Rb6
{[%clk 00:20:44]} {[%emt 00:00:19]} Rxb6 {[%clk 00:23:36]} {[%emt 00:00:34]} 36.
axb6 {[%clk 00:21:11]} {[%emt 00:00:02]} Rd8 {[%clk 00:23:29]} {[%emt
00:00:36]} 37. b7 {[%clk 00:21:23]} {[%emt 00:00:18]} Rb8 {[%clk 00:23:49]}
{[%emt 00:00:10]} 38. Rxd6 {[%clk 00:21:26]} {[%emt 00:00:28]} Rxb7 {[%clk
00:24:13]} {[%emt 00:00:06]} 39. Rd5 {[%clk 00:20:17]} {[%emt 00:01:39]} Re7
{[%clk 00:24:32]} {[%emt 00:00:11]} 40. Kf2 {[%clk 00:20:44]} {[%emt 00:00:02]}
Kf7 {[%clk 00:24:21]} {[%emt 00:00:42]} 41. Kf3 {[%clk 00:21:12]} {[%emt
00:00:03]} Kf6 {[%clk 00:24:13]} {[%emt 00:00:38]} 42. Ke4 {[%clk 00:21:29]}
{[%emt 00:00:13]} Re6 {[%clk 00:21:42]} {[%emt 00:03:02]} 43. Ra5 {[%clk
00:21:24]} {[%emt 00:00:34]} 1/2-1/2

[Event "Schack-SM 2024: Junior-SM"]
[Site "Fortnox Arena, Hejaregatan 5, Vaxjo, Sweden"]
[Date "2024.07.06"]
[Round "8.2"]
[White "Seo, Jung Hyun"]
[Black "Rasti, Arvin"]
[Result "0-1"]
[TimeControl "90 minutes for 40 moves + 30 minutes for the rest of the game + 30 seconds per move from move one."]
[BlackTitle "FM"]
[WhiteElo "2137"]
[BlackElo "2210"]

1. e4 {[%clk 01:30:56]} {[%emt 00:00:04]} c5 {[%clk 01:23:03]} {[%emt
00:07:58]} 2. Nf3 {[%clk 01:31:16]} {[%emt 00:00:09]} d6 {[%clk 01:23:07]}
{[%emt 00:00:27]} 3. d4 {[%clk 01:31:41]} {[%emt 00:00:04]} cxd4 {[%clk
01:23:16]} {[%emt 00:00:22]} 4. Nxd4 {[%clk 01:32:07]} {[%emt 00:00:03]} Nf6
{[%clk 01:23:40]} {[%emt 00:00:07]} 5. Nc3 {[%clk 01:32:33]} {[%emt 00:00:03]}
Nc6 {[%clk 01:24:03]} {[%emt 00:00:07]} 6. f3 {[%clk 01:32:44]} {[%emt
00:00:20]} e5 {[%clk 01:24:17]} {[%emt 00:00:15]} 7. Nb3 {[%clk 01:33:12]}
{[%emt 00:00:03]} Be7 {[%clk 01:24:40]} {[%emt 00:00:07]} 8. Be3 {[%clk
01:33:33]} {[%emt 00:00:09]} Be6 {[%clk 01:24:50]} {[%emt 00:00:19]} 9. Nd5
{[%clk 01:33:57]} {[%emt 00:00:07]} h6 {[%clk 01:23:33]} {[%emt 00:01:48]} 10.
Qd2 {[%clk 01:33:39]} {[%emt 00:00:48]} O-O {[%clk 01:23:05]} {[%emt 00:00:57]}
11. Be2 {[%clk 01:27:01]} {[%emt 00:07:08]} Bxd5 {[%clk 01:14:31]} {[%emt
00:09:04]} 12. exd5 {[%clk 01:25:56]} {[%emt 00:01:36]} Nb8 {[%clk 01:14:59]}
{[%emt 00:00:03]} 13. c4 {[%clk 01:20:45]} {[%emt 00:05:39]} a5 {[%clk
01:14:53]} {[%emt 00:00:37]} 14. O-O {[%clk 01:14:36]} {[%emt 00:06:38]} Nfd7
{[%clk 01:12:33]} {[%emt 00:02:51]} 15. Qc2 {[%clk 01:12:16]} {[%emt 00:02:50]}
Bg5 {[%clk 01:09:37]} {[%emt 00:03:25]} 16. Bf2 {[%clk 01:12:23]} {[%emt
00:00:24]} Na6 {[%clk 01:08:38]} {[%emt 00:01:30]} 17. Qc3 {[%clk 00:56:31]}
{[%emt 00:16:22]} b6 {[%clk 01:03:27]} {[%emt 00:05:40]} 18. Nd2 {[%clk
00:53:22]} {[%emt 00:03:39]} f5 {[%clk 01:03:17]} {[%emt 00:00:40]} 19. Rad1
{[%clk 00:51:30]} {[%emt 00:02:22]} Qc7 {[%clk 01:00:48]} {[%emt 00:02:58]} 20.
Nb1 {[%clk 00:45:55]} {[%emt 00:06:05]} Bf6 {[%clk 00:57:07]} {[%emt 00:04:12]}
21. Qc2 {[%clk 00:42:30]} {[%emt 00:03:54]} e4 {[%clk 00:55:47]} {[%emt
00:01:50]} 22. fxe4 {[%clk 00:40:46]} {[%emt 00:02:15]} fxe4 {[%clk 00:56:08]}
{[%emt 00:00:10]} 23. Qxe4 {[%clk 00:35:00]} {[%emt 00:06:15]} Rae8 {[%clk
00:56:17]} {[%emt 00:00:21]} 24. Qc2 {[%clk 00:32:06]} {[%emt 00:03:22]} Nb4
{[%clk 00:56:00]} {[%emt 00:00:49]} 25. Qd2 {[%clk 00:32:25]} {[%emt 00:00:11]}
Bg5 {[%clk 00:56:18]} {[%emt 00:00:11]} 26. Qe1 {[%clk 00:31:50]} {[%emt
00:01:05]} Nc2 {[%clk 00:56:28]} {[%emt 00:00:22]} 27. Qc3 {[%clk 00:30:18]}
{[%emt 00:02:01]} Rxe2 {[%clk 00:56:37]} {[%emt 00:00:20]} 28. Qd3 {[%clk
00:30:18]} {[%emt 00:00:31]} Rexf2 {[%clk 00:56:04]} {[%emt 00:01:03]} 29. Rxf2
{[%clk 00:30:45]} {[%emt 00:00:04]} Be3 {[%clk 00:56:30]} {[%emt 00:00:04]} 30.
Qxc2 {[%clk 00:30:18]} {[%emt 00:00:57]} Rxf2 {[%clk 00:56:42]} {[%emt
00:00:18]} 31. Qa4 {[%clk 00:30:20]} {[%emt 00:00:27]} b5 {[%clk 00:55:02]}
{[%emt 00:02:10]} 32. Qa3 {[%clk 00:30:05]} {[%emt 00:00:46]} Rd2+ {[%clk
00:55:01]} {[%emt 00:00:30]} 33. Qxe3 {[%clk 00:30:26]} {[%emt 00:00:09]} Rxd1+
{[%clk 00:55:26]} {[%emt 00:00:06]} 34. Kf2 {[%clk 00:30:56]} Ne5 {[%clk
00:55:36]} {[%emt 00:00:19]} 35. Qh3 {[%clk 00:31:00]} {[%emt 00:00:26]} Qf7+
{[%clk 00:56:00]} {[%emt 00:00:06]} 36. Ke2 {[%clk 00:31:26]} {[%emt 00:00:04]}
Qf1+ {[%clk 00:56:25]} {[%emt 00:00:05]} 0-1

[Event "Schack-SM 2024: Junior-SM"]
[Site "Fortnox Arena, Hejaregatan 5, Vaxjo, Sweden"]
[Date "2024.07.05"]
[Round "7.1"]
[White "Rasti, Arvin"]
[Black "Soderstrom, Adrian"]
[Result "1-0"]
[TimeControl "90 minutes for 40 moves + 30 minutes for the rest of the game + 30 seconds per move from move one."]
[WhiteTitle "FM"]
[BlackTitle "FM"]
[WhiteElo "2210"]
[BlackElo "2351"]

1. Nf3 {[%clk 01:25:46]} {[%emt 00:05:13]} d5 {[%clk 01:30:35]} {[%emt
00:00:24]} 2. c4 {[%clk 01:25:35]} {[%emt 00:00:43]} d4 {[%clk 01:30:27]}
{[%emt 00:00:38]} 3. b4 {[%clk 01:26:00]} {[%emt 00:00:05]} g5 {[%clk
01:30:15]} {[%emt 00:01:20]} 4. Nxg5 {[%clk 01:20:11]} {[%emt 00:06:18]} e5
{[%clk 01:30:17]} {[%emt 00:00:29]} 5. d3 {[%clk 01:18:09]} {[%emt 00:02:33]}
Bxb4+ {[%clk 01:20:55]} {[%emt 00:09:52]} 6. Bd2 {[%clk 01:18:38]} Be7 {[%clk
01:14:19]} {[%emt 00:07:06]} 7. Nf3 {[%clk 01:16:34]} {[%emt 00:02:34]} Bf6
{[%clk 01:10:47]} {[%emt 00:04:02]} 8. Qc1 {[%clk 01:06:02]} {[%emt 00:11:02]}
Nc6 {[%clk 00:58:33]} {[%emt 00:12:44]} 9. g3 {[%clk 01:02:02]} {[%emt
00:04:30]} h5 {[%clk 00:57:02]} {[%emt 00:02:01]} 10. h4 {[%emt 00:03:26]} Bg4
{[%emt 00:03:52]} 11. Bg2 {[%emt 00:14:44]} Nge7 {[%clk 00:38:38]} {[%emt
00:02:32]} 12. O-O Rg8 {[%emt 00:09:27]} 13. Bg5 {[%clk 00:39:34]} {[%emt
00:10:20]} Bh8 {[%emt 00:09:18]} 14. Qb2 {[%emt 00:04:51]} f6 {[%clk 00:32:19]}
{[%emt 00:00:04]} 15. Bc1 {[%emt 00:03:42]} Qd7 {[%clk 00:28:37]} {[%emt
00:00:50]} 16. Re1 {[%emt 00:08:48]} Rb8 {[%emt 00:01:28]} 17. Nbd2 {[%emt
00:06:29]} Nd8 {[%emt 00:02:57]} 18. Rb1 {[%clk 00:28:15]} {[%emt 00:01:12]}
Ne6 {[%clk 00:14:49]} {[%emt 00:00:59]} 19. Ne4 {[%clk 00:27:35]} {[%emt
00:01:10]} Kf7 {[%emt 00:06:01]} 20. Kh2 {[%clk 00:24:39]} {[%emt 00:00:06]}
Bf5 {[%clk 00:12:31]} {[%emt 00:00:36]} 21. Qa3 {[%clk 00:23:21]} {[%emt
00:01:48]} Bxe4 {[%clk 00:09:45]} {[%emt 00:03:15]} 22. dxe4 {[%clk 00:23:50]}
b6 {[%clk 00:09:45]} {[%emt 00:00:30]} 23. Bh3 {[%clk 00:22:48]} {[%emt
00:01:32]} Qc6 {[%clk 00:08:12]} {[%emt 00:02:03]} 24. Nd2 {[%clk 00:22:25]}
{[%emt 00:00:54]} Nc5 {[%clk 00:08:16]} {[%emt 00:00:25]} 25. Qf3 {[%clk
00:22:41]} {[%emt 00:00:13]} Bg7 {[%clk 00:06:19]} {[%emt 00:02:27]} 26. Qxh5+
{[%clk 00:21:38]} {[%emt 00:01:34]} Kf8 {[%clk 00:06:46]} {[%emt 00:00:02]} 27.
Ba3 {[%clk 00:21:45]} {[%emt 00:00:23]} Rh8 {[%clk 00:06:06]} {[%emt 00:01:10]}
28. Qg4 {[%clk 00:21:39]} {[%emt 00:00:37]} Bh6 {[%clk 00:06:08]} {[%emt
00:00:27]} 29. Nf3 {[%clk 00:18:27]} {[%emt 00:03:42]} Rd8 {[%clk 00:03:51]}
{[%emt 00:02:47]} 30. Red1 {[%clk 00:13:58]} {[%emt 00:04:59]} Rd6 {[%clk
00:03:46]} {[%emt 00:00:34]} 31. Rb5 {[%clk 00:13:20]} {[%emt 00:01:08]} a6
{[%clk 00:03:26]} {[%emt 00:00:50]} 32. Bxc5 {[%clk 00:13:29]} {[%emt
00:00:20]} axb5 {[%clk 00:03:28]} {[%emt 00:00:28]} 33. Bxd6 {[%clk 00:13:58]}
{[%emt 00:00:02]} cxd6 {[%clk 00:03:33]} {[%emt 00:00:24]} 34. cxb5 {[%clk
00:14:00]} {[%emt 00:00:29]} Qxb5 {[%clk 00:04:01]} {[%emt 00:00:02]} 35. Qe6
{[%clk 00:13:57]} {[%emt 00:00:32]} Bg7 {[%clk 00:03:21]} {[%emt 00:01:10]} 36.
Rc1 {[%clk 00:13:50]} {[%emt 00:00:38]} Rh7 {[%clk 00:02:27]} {[%emt 00:01:23]}
37. Rc7 {[%clk 00:13:51]} {[%emt 00:00:30]} Bh6 {[%clk 00:00:50]} {[%emt
00:02:07]} 38. Qxf6+ {[%clk 00:13:35]} {[%emt 00:00:46]} Ke8 {[%clk 00:01:17]}
{[%emt 00:00:03]} 39. Qe6 {[%clk 00:13:34]} {[%emt 00:00:31]} Kd8 {[%clk
00:00:48]} {[%emt 00:00:59]} 40. Qxe7+ {[%clk 00:13:18]} {[%emt 00:00:47]} Rxe7
{[%clk 00:01:10]} {[%emt 00:00:08]} 41. Rc8# {[%clk 00:13:45]} {[%emt
00:00:02]} 1-0